bitfinex/quotes_BTCUSD_20250410
["timestamp","ask_amount","ask_price","bid_price","bid_amount"]
[1744297814062,0.257978,81044.0,81033.0,0.259151]
[1744297814270,0.24564,81044.0,81034.0,0.246809]
[1744297814471,0.24564,81044.0,81035.0,0.246805]
[1744297814649,0.24564,81044.0,81035.0,0.259145]
[1744297814854,0.24564,81044.0,81039.0,0.012339]
[1744297815054,0.24564,81044.0,81036.0,0.246801]
[1744297815302,0.24564,81044.0,81035.0,0.246806]
[1744297815487,0.246795,81039.0,81030.0,0.246821]
[1744297815673,0.259134,81039.0,81028.0,0.2469543]
[1744297815928,0.2468,81038.0,81029.0,0.246824]
[1744297816117,0.246794,81039.0,81029.0,0.246823]
[1744297816321,0.25913,81040.0,81030.0,0.246821]
[1744297816471,0.25619535,81050.0,81037.0,0.01234]
[1744297816676,0.012338,81044.0,81032.0,0.246814]
[1744297816884,0.246803,81037.0,81028.0,0.0001273]
[1744297817093,0.246804,81036.0,81028.0,0.0001273]
[1744297817490,0.259166,81029.0,81028.0,0.0001273]
[1744297817694,0.27370685,81029.0,81028.0,0.0001273]
[1744297818062,0.41711318,81029.0,81028.0,0.0001273]
[1744297819386,0.8753376,81029.0,81028.0,0.0001273]
[1744297819558,0.259245,81005.0,80993.0,0.0485]
[1744297819764,0.246902,81006.0,81002.0,0.00042566]
[1744297820081,0.012344,81008.0,81002.0,0.00042566]
[1744297820082,0.24689,81008.0,81002.0,0.00042566]
[1744297820291,0.00499925,81045.0,81005.0,0.012344]
[1744297820493,0.246843,81023.0,81012.0,0.246876]
[1744297820662,0.12055382,81023.0,81013.0,0.246871]
[1744297820864,0.02283065,81026.0,81022.0,0.246844]
[1744297821027,0.2396,81033.0,81019.0,0.259197]
[1744297821028,0.24682,81031.0,81019.0,0.259197]
[1744297821228,0.486413,81033.0,81023.0,0.246841]
[1744297821593,0.02283346,81031.0,81022.0,0.246845]
[1744297821737,0.02283346,81031.0,81022.0,0.246843]
[1744297821929,0.26965246,81031.0,81022.0,0.246843]
[1744297822158,0.26965246,81031.0,81015.0,0.0478]
[1744297822159,0.012342,81021.0,81015.0,0.0478]
[1744297822358,0.246843,81023.0,81015.0,0.0478]
[1744297822655,0.24684,81025.0,81015.0,0.0478]
[1744297822875,0.12055382,81025.0,81016.0,0.246864]
[1744297823036,0.246822,81030.0,81021.0,0.012342]
[1744297823245,0.246826,81029.0,81019.0,0.246855]
[1744297823987,0.246822,81030.0,81017.0,0.259203]
[1744297823988,0.246828,81028.0,81017.0,0.259203]
[1744297824196,0.246825,81029.0,81018.0,0.246858]
[1744297824538,0.246833,81027.0,81017.0,0.259204]
[1744297824764,0.246826,81029.0,81020.0,0.246849]
[1744297824883,0.246831,81027.0,81017.0,0.259203]
[1744297825075,0.246831,81027.0,81018.0,0.246858]
[1744297825331,0.259168,81029.0,81019.0,0.246853]
[1744297825707,0.02283637,81028.0,81019.0,0.246853]
[1744297826916,0.02283637,81028.0,81027.0,0.259172]
[1744297827126,0.02283637,81028.0,81020.0,0.012342]
[1744297827127,0.12729099,81043.0,81037.0,0.01234]
[1744297827325,0.02284439,81042.0,81035.0,0.259145]
[1744297827523,0.02284439,81042.0,81035.0,0.01234]
[1744297827703,0.12729099,81043.0,81039.0,0.246794]
[1744297827910,0.12729099,81043.0,81040.0,0.012339]
[1744297828192,0.36693099,81045.0,81039.0,0.246794]
[1744297828309,0.36693099,81045.0,81040.0,0.246791]
[1744297828508,0.36693099,81045.0,81039.0,0.246794]
[1744297828705,0.012339,81041.0,81024.0,0.012342]
[1744297828929,0.259136,81038.0,81029.0,0.246824]
[1744297829128,0.259136,81038.0,81028.0,0.246826]
[1744297829338,0.2468,81037.0,81028.0,0.246826]
[1744297829742,0.259129,81041.0,81031.0,0.246818]
[1744297829951,0.2468,81038.0,81029.0,0.246824]
[1744297830143,0.25913,81041.0,81031.0,0.246817]
[1744297830347,0.25913,81041.0,81026.0,0.012341]
[1744297830348,0.246791,81040.0,81009.0,0.34]
[1744297830573,0.246813,81033.0,81022.0,0.012342]
[1744297830788,0.01234,81037.0,81026.0,0.012341]
[1744297830941,0.24681,81034.0,81025.0,0.246837]
[1744297831139,0.24681,81034.0,81022.0,0.25927506]
[1744297831140,0.01234,81034.0,81022.0,0.25927506]
[1744297831366,0.259152,81034.0,81025.0,0.246837]
[1744297831571,0.259151,81034.0,81025.0,0.246837]
[1744297831765,0.02284691,81033.0,81025.0,0.246837]
[1744297832013,0.02284691,81033.0,81026.0,0.246833]
[1744297832215,0.26965991,81033.0,81023.0,0.259184]
[1744297832371,0.246816,81032.0,81022.0,8.906e-05]
[1744297832585,0.02284691,81032.0,81022.0,8.906e-05]
[1744297832757,0.02284691,81036.0,81024.0,0.012342]
[1744297832958,0.01234,81034.0,81022.0,0.24693506]
[1744297833266,0.246819,81031.0,81022.0,0.24693406]
[1744297833887,0.12055382,81037.0,81022.0,0.01243106]
[1744297834090,0.246807,81035.0,81026.0,0.012341]
[1744297834562,0.246846,81036.0,81027.0,0.246829]
[1744297834738,4e-05,81036.0,81028.0,0.246827]
[1744297834945,4e-05,81036.0,81030.0,0.246821]
[1744297835185,4e-05,81036.0,81034.0,0.246807]
[1744297835476,4e-05,81036.0,81030.0,0.012341]
[1744297835700,4e-05,81036.0,81030.0,0.259162]
[1744297836181,4e-05,81036.0,81035.0,0.01234]
[1744297836585,8e-05,81036.0,81035.0,0.11170793]
[1744297837933,8e-05,81036.0,81035.0,0.23226175]
[1744297838136,8e-05,81036.0,81035.0,0.22979382]
[1744297840797,8e-05,81036.0,81035.0,0.356046]
[1744297842062,8e-05,81036.0,81035.0,0.47659982]
[1744297842747,0.00012,81036.0,81035.0,0.47659982]
[1744297851332,0.00016,81036.0,81035.0,0.47659982]
[1744297851760,0.246741,81057.0,81049.0,0.246764]
[1744297852418,0.246737,81058.0,81050.0,0.246761]
[1744297852782,0.012336,81058.0,81051.0,0.246757]
[1744297853036,0.24674,81057.0,81051.0,0.246757]
[1744297853235,0.00012722,81058.0,81050.0,0.012338]
[1744297853406,0.012336,81057.0,81049.0,0.246764]
[1744297853551,0.246742,81056.0,81049.0,0.246764]
[1744297853748,0.246742,81056.0,81050.0,0.246759]
[1744297853963,0.246753,81053.0,81045.0,0.259113]
[1744297854162,0.012338,81050.0,81037.0,0.01234]
[1744297854369,0.012338,81048.0,81038.0,0.012339]
[1744297854565,0.246772,81047.0,81039.0,0.246792]
[1744297854834,0.246775,81046.0,81037.0,0.01234]
[1744297855035,0.246775,81046.0,81039.0,0.246794]
[1744297855190,0.246774,81046.0,81038.0,0.246797]
[1744297855393,0.246773,81046.0,81039.0,0.246791]
[1744297855589,0.25911,81047.0,81037.0,0.01234]
[1744297856609,0.24678,81044.0,81035.0,0.0969]
[1744297856808,0.012338,81046.0,81035.0,0.0969]
[1744297856809,0.246782,81045.0,81036.0,0.259141]
[1744297857165,0.246773,81046.0,81037.0,0.01234]
[1744297857295,0.246773,81046.0,81038.0,0.012339]
[1744297857868,0.246777,81045.0,81039.0,0.246791]
[1744297858058,0.246773,81046.0,81039.0,0.246791]
[1744297858674,0.259108,81047.0,81039.0,0.25913]
[1744297859081,0.24677,81047.0,81040.0,0.246789]
[1744297859384,0.246777,81045.0,81038.0,0.25913]
[1744297859675,0.246774,81046.0,81038.0,0.25913]
[1744297859676,0.246774,81046.0,81039.0,0.246793]
[1744297859877,0.246774,81046.0,81040.0,0.246791]
[1744297860070,0.246777,81045.0,81038.0,0.259136]
[1744297860286,0.246799,81038.0,81030.0,0.259162]
[1744297860490,0.012341,81029.0,81022.0,0.048]
[1744297860644,0.246867,81015.0,81013.0,0.048]
[1744297860844,0.012342,81020.0,81013.0,0.048]
[1744297861095,0.246851,81021.0,81013.0,0.294873]
[1744297861258,0.259193,81021.0,81013.0,0.294873]
[1744297861461,0.13289482,81028.0,81016.0,0.012343]
[1744297861692,0.012339,81040.0,81030.0,0.012341]
[1744297861922,0.246809,81034.0,81027.0,0.24683]
[1744297862117,0.01234,81033.0,81023.0,0.012342]
[1744297862320,0.012341,81028.0,81022.0,0.246846]
[1744297862569,0.246828,81028.0,81021.0,0.259191]
[1744297862750,0.259169,81029.0,81023.0,0.246843]
[1744297862949,0.259169,81029.0,81022.0,0.246846]
[1744297863127,0.246822,81030.0,81023.0,0.246842]
[1744297863325,1.27044,81038.0,81031.0,0.01234]
[1744297863552,1.27044,81038.0,81032.0,0.01234]
[1744297863755,1.517238,81038.0,81032.0,0.01234]
[1744297863991,1.517238,81038.0,81032.0,0.246814]
[1744297864351,1.27044,81038.0,81033.0,0.246812]
[1744297864538,1.517238,81038.0,81032.0,0.246814]
[1744297864740,1.27044,81038.0,81032.0,0.246814]
[1744297864988,1.27044,81038.0,81037.0,0.2468]
[1744297865199,1.27044,81038.0,81031.0,0.01234]
[1744297865399,1.27044,81038.0,81034.0,0.01234]
[1744297865637,1.27044,81038.0,81035.0,0.259146]
[1744297865812,0.246788,81042.0,81035.0,0.259146]
[1744297866024,0.246792,81040.0,81035.0,0.246806]
[1744297866232,0.246786,81042.0,81036.0,0.246803]
[1744297866454,0.246789,81041.0,81036.0,0.246803]
[1744297866651,0.238219,81043.0,81036.0,0.246803]
[1744297866992,0.012339,81042.0,81035.0,0.0497]
[1744297867167,0.246797,81038.0,81035.0,0.0497]
[1744297867305,0.246795,81039.0,81035.0,0.0497]
[1744297867506,0.25913,81040.0,81032.0,0.0459]
[1744297867951,0.246805,81036.0,81032.0,0.0459]
[1744297868150,0.246805,81036.0,81027.0,0.061641]
[1744297868151,0.012341,81028.0,81020.0,0.0483]
[1744297868501,0.259204,81017.0,81002.0,0.0003366]
[1744297868711,0.61433867,81017.0,81002.0,0.0003366]
[1744297868916,0.62653578,81017.0,81002.0,0.0003366]
[1744297869463,0.62653578,81017.0,81005.0,0.16699954]
[1744297870079,0.62657578,81017.0,81005.0,0.16699954]
[1744297871034,0.259239,81006.0,81005.0,0.16699954]
[1744297871252,0.39433367,81006.0,81005.0,0.16699954]
[1744297872050,0.38914321,81006.0,81005.0,0.16699954]
[1744297872256,0.246895,81006.0,81005.0,0.16699954]
[1744297872480,0.246893,81007.0,81005.0,0.16699954]
[1744297872656,0.22008,81012.0,81007.0,0.012344]
[1744297872832,0.22008,81012.0,81010.0,0.246881]
[1744297873241,0.246865,81016.0,81010.0,0.246881]
[1744297874218,0.246871,81014.0,81007.0,0.246891]
[1744297874380,0.246871,81014.0,81009.0,0.246885]
[1744297874583,0.246868,81015.0,81010.0,0.246882]
[1744297874787,0.259208,81016.0,81010.0,0.246882]
[1744297875402,4e-05,81014.0,81010.0,0.246882]
[1744297875852,4e-05,81014.0,81009.0,0.259229]
[1744297875993,0.246912,81014.0,81009.0,0.246885]
[1744297876191,0.246892,81007.0,81006.0,0.0459]
[1744297876405,0.259236,81007.0,81006.0,0.0459]
[1744297877091,0.246884,81010.0,81006.0,0.0459]
[1744297877291,4e-05,81014.0,81013.0,0.246873]
[1744297877496,4e-05,81014.0,81013.0,0.259216]
[1744297877699,4e-05,81014.0,81013.0,0.308916]
[1744297879430,8e-05,81014.0,81013.0,0.308916]
[1744297880298,8e-05,81014.0,81013.0,0.0497]
[1744297880494,8e-05,81014.0,81013.0,0.296573]
[1744297880719,8e-05,81014.0,81013.0,0.308916]
[1744297881883,0.00012,81014.0,81013.0,0.296573]
[1744297881998,0.00012,81014.0,81013.0,0.0497]
[1744297882206,0.00012,81014.0,81013.0,0.296573]
[1744297882400,0.00012,81014.0,81013.0,0.308916]
[1744297883643,0.00012,81014.0,80995.0,0.0003366]
[1744297883644,0.259249,81003.0,80995.0,0.0003366]
[1744297883942,0.78619307,81003.0,80995.0,0.0003366]
[1744297884145,0.53000627,81003.0,80995.0,0.0003366]
[1744297884347,0.246904,81003.0,80996.0,0.246925]
[1744297884549,0.259249,81003.0,80995.0,0.0003366]
[1744297884881,0.37980282,81003.0,80995.0,0.0003366]
[1744297885466,0.39434367,81003.0,80995.0,0.0003366]
[1744297886621,0.27389285,80971.0,80970.0,1.4e-07]
[1744297886925,0.27389285,80971.0,80965.0,3.4e-07]
[1744297886926,0.247017,80966.0,80965.0,3.4e-07]
[1744297887079,0.247017,80966.0,80965.0,0.00042504]
[1744297887080,0.61390785,80966.0,80965.0,0.00042504]
[1744297887279,0.74702237,80966.0,80965.0,0.00042504]
[1744297887510,0.77899952,80966.0,80965.0,0.00042504]
[1744297888648,1.17899952,80966.0,80965.0,0.00042504]
[1744297888854,1.17903952,80966.0,80965.0,0.00042504]
[1744297889892,0.352351,80965.0,80964.0,1.4e-07]
[1744297890002,0.27394585,80954.0,80953.0,1.4e-07]
[1744297890205,0.39449967,80954.0,80953.0,0.00012724]
[1744297890611,0.41726343,80954.0,80953.0,0.00012724]
[1744297891850,0.40272258,80954.0,80953.0,0.00012724]
[1744297892255,0.37995882,80954.0,80953.0,0.00012724]
[1744297892481,0.39449967,80954.0,80953.0,0.00012724]
[1744297893060,0.39453967,80954.0,80953.0,0.00012724]
[1744297893264,0.41717201,80954.0,80953.0,0.00012724]
[1744297896351,0.40263116,80954.0,80953.0,0.00012724]
[1744297896556,0.41717201,80954.0,80953.0,0.00012724]
[1744297896759,0.81717201,80954.0,80953.0,0.00012724]
[1744297897370,0.41717201,80954.0,80953.0,0.00012724]
[1744297897776,0.75717201,80954.0,80953.0,0.00012724]
[1744297897957,0.79416703,80954.0,80953.0,0.00012724]
[1744297898170,0.76847798,80954.0,80953.0,2.4e-07]
[1744297901287,1.16847798,80954.0,80953.0,2.4e-07]
[1744297901665,0.259477,80932.0,80931.0,0.004]
[1744297901863,0.38003082,80932.0,80931.0,0.0041207]
[1744297902888,0.41714156,80932.0,80931.0,0.0041207]
[1744297904339,0.29109444,80932.0,80931.0,0.0041207]
[1744297904670,0.04397344,80932.0,80931.0,0.0041207]
[1744297905010,0.02256989,80932.0,80931.0,0.4405207]
[1744297905228,0.02256989,80932.0,80931.0,0.7000007]
[1744297905436,0.012353,80947.0,80939.0,0.012354]
[1744297905639,0.259427,80948.0,80942.0,0.247088]
[1744297905844,0.012353,80949.0,80944.0,0.247083]
[1744297906045,0.259422,80949.0,80943.0,0.247085]
[1744297906251,0.247077,80947.0,80940.0,0.247094]
[1744297906445,0.259425,80948.0,80943.0,0.247086]
[1744297906717,0.259423,80949.0,80944.0,0.247082]
[1744297906909,0.259423,80949.0,80943.0,0.25944]
[1744297906910,0.247072,80948.0,80943.0,0.25944]
[1744297907138,0.247069,80949.0,80944.0,0.259436]
[1744297907494,0.24707,80949.0,80945.0,0.24708]
[1744297907699,0.247074,80948.0,80944.0,0.012354]
[1744297908096,0.247075,80947.0,80943.0,0.259439]
[1744297908531,0.247072,80948.0,80944.0,0.247083]
[1744297908692,0.247076,80947.0,80943.0,0.247085]
[1744297909091,0.247076,80947.0,80942.0,0.012354]
[1744297909490,0.247081,80945.0,80942.0,0.247089]
[1744297909732,0.259432,80946.0,80942.0,0.247089]
[1744297909889,0.247083,80945.0,80942.0,0.247089]
[1744297910128,0.247082,80945.0,80942.0,0.247089]
[1744297910326,0.012353,80946.0,80941.0,0.259447]
[1744297910554,0.247081,80945.0,80941.0,0.247093]
[1744297910733,0.247086,80944.0,80940.0,0.259448]
[1744297910934,0.259436,80945.0,80941.0,0.247093]
[1744297911128,0.259436,80945.0,80939.0,0.259453]
[1744297911392,0.012354,80940.0,80934.0,0.247112]
[1744297911571,0.247113,80935.0,80930.0,0.012356]
[1744297911731,0.247116,80934.0,80931.0,0.3476417]
[1744297911931,0.247113,80935.0,80931.0,0.3476417]
[1744297912150,0.247113,80935.0,80932.0,0.24712]
[1744297912561,0.247113,80935.0,80931.0,0.3476417]
[1744297912763,0.247113,80935.0,80932.0,0.24712]
[1744297913133,0.247113,80935.0,80931.0,0.3599977]
[1744297913760,0.02276836,80934.0,80931.0,0.3476417]
[1744297914149,0.247118,80933.0,80931.0,0.3476417]
[1744297914349,0.247115,80934.0,80931.0,0.3476417]
[1744297914782,0.02279174,80933.0,80931.0,0.3476417]
[1744297914980,0.247118,80933.0,80931.0,0.3476417]
[1744297915215,0.247118,80933.0,80931.0,0.1005207]
[1744297915216,0.259477,80932.0,80931.0,0.1005207]
[1744297915353,0.28226697,80932.0,80931.0,0.1005207]
[1744297915554,0.28226697,80932.0,80931.0,0.0041207]
[1744297916720,0.29369321,80932.0,80931.0,0.0041207]
[1744297917671,0.41424703,80932.0,80931.0,0.0041207]
[1744297917888,0.42878788,80932.0,80931.0,0.0041207]
[1744297918113,0.76878788,80932.0,80931.0,0.0041207]
[1744297918751,0.76878788,80932.0,80920.0,0.0001684]
[1744297918752,0.259511,80921.0,80920.0,0.0001684]
[1744297918949,0.247152,80922.0,80921.0,0.0484]
[1744297918950,0.012357,80922.0,80921.0,0.0484]
[1744297919150,0.259503,80924.0,80921.0,0.0484]
[1744297919333,0.02278997,80922.0,80921.0,0.0484]
[1744297919812,0.02278997,80922.0,80921.0,0.060757]
[1744297920603,0.03421621,80922.0,80921.0,0.060757]
[1744297921005,0.247093,80954.0,80953.0,0.012352]
[1744297921006,4e-05,80954.0,80953.0,0.012352]
[1744297921332,0.00016711,80954.0,80952.0,0.25941]
[1744297921555,0.00016711,80954.0,80953.0,0.012352]
[1744297921738,0.24706,80952.0,80950.0,0.0473]
[1744297921945,0.012352,80953.0,80950.0,0.0473]
[1744297922148,0.00016711,80954.0,80951.0,0.24706]
[1744297922460,0.00016711,80954.0,80953.0,0.012352]
[1744297925881,0.00016711,80954.0,80950.0,0.0473]
[1744297926084,0.012352,80952.0,80950.0,0.0473]
[1744297926305,0.247056,80953.0,80950.0,0.0473]
[1744297926460,0.24706,80952.0,80950.0,0.0473]
[1744297926813,0.012353,80951.0,80950.0,0.0473]
[1744297927009,0.259425,80948.0,80947.0,0.0462]
[1744297927878,0.012352,80953.0,80947.0,0.0462]
[1744297927879,0.00016711,80954.0,80947.0,0.0462]
[1744297928081,0.00016711,80954.0,80950.0,0.247065]
[1744297928451,0.00016711,80954.0,80949.0,0.247066]
[1744297928673,0.00016711,80954.0,80947.0,0.058553]
[1744297928674,0.247071,80949.0,80947.0,0.0462]
[1744297929007,0.259424,80949.0,80947.0,0.0462]
[1744297929557,0.012353,80950.0,80947.0,0.293274]
[1744297929804,0.012353,80948.0,80947.0,0.0462]
[1744297929998,0.247069,80949.0,80947.0,0.0462]
[1744297930237,0.012352,80953.0,80947.0,0.0462]
[1744297930415,0.00016711,80954.0,80953.0,0.012352]
[1744297930619,0.00016711,80954.0,80952.0,0.247058]
[1744297930795,0.00016711,80954.0,80953.0,0.012352]
[1744297934845,0.00016711,80954.0,80952.0,0.247058]
[1744297936126,0.00016711,80954.0,80953.0,0.247056]
[1744297936442,0.00016711,80954.0,80953.0,0.0458]
[1744297936776,0.012353,80948.0,80944.0,0.0458]
[1744297937000,0.32891382,80947.0,80920.0,0.0001684]
[1744297937201,0.247116,80934.0,80930.0,0.247127]
[1744297937559,0.247118,80933.0,80928.0,0.259486]
[1744297937717,0.012355,80936.0,80929.0,0.012356]
[1744297937888,0.247118,80933.0,80929.0,0.012356]
[1744297938087,0.247118,80933.0,80929.0,0.247129]
[1744297938334,0.247118,80933.0,80929.0,0.259485]
[1744297938569,0.012354,80944.0,80931.0,0.012356]
[1744297938846,0.247109,80936.0,80933.0,0.247116]
[1744297939048,0.247106,80937.0,80934.0,0.247112]
[1744297939271,0.247112,80935.0,80931.0,0.259478]
[1744297939446,0.012356,80931.0,80923.0,0.247147]
[1744297939644,0.247128,80930.0,80926.0,0.247138]
[1744297940373,0.247105,80937.0,80933.0,0.247117]
[1744297940581,0.247105,80937.0,80924.0,0.012357]
[1744297940582,0.247086,80944.0,80940.0,0.247096]
[1744297940807,0.247099,80939.0,80937.0,0.0496]
[1744297941007,0.247096,80941.0,80937.0,0.0496]
[1744297941147,0.247099,80939.0,80937.0,0.0496]
[1744297941348,0.247093,80941.0,80937.0,0.0496]
[1744297941547,0.2471,80939.0,80937.0,0.0496]
[1744297941885,0.247102,80938.0,80937.0,0.0496]
[1744297942131,0.2471,80939.0,80937.0,0.0496]
[1744297942277,0.24708,80946.0,80938.0,0.058755]
[1744297942480,0.259433,80946.0,80938.0,0.305856]
[1744297942843,0.247058,80953.0,80938.0,0.305856]
[1744297942844,0.247062,80952.0,80944.0,0.012354]
[1744297943044,0.012352,80953.0,80947.0,0.247072]
[1744297943045,0.247065,80951.0,80947.0,0.247072]
[1744297943255,0.247065,80951.0,80946.0,0.012353]
[1744297943256,0.247076,80947.0,80943.0,0.012354]
[1744297943527,0.247067,80950.0,80944.0,0.012354]
[1744297943934,0.24722311,80954.0,80949.0,0.247069]
[1744297944234,0.00016711,80954.0,80953.0,0.259408]
[1744297944805,0.00016711,80954.0,80948.0,0.259422]
[1744297944977,0.012353,80948.0,80943.0,0.247087]
[1744297945177,0.247098,80940.0,80938.0,0.0464]
[1744297945643,0.247085,80944.0,80940.0,0.247095]
[1744297945801,0.012353,80947.0,80940.0,0.259449]
[1744297946618,0.247081,80945.0,80941.0,0.247092]
[1744297947159,0.01251911,80954.0,80946.0,0.012353]
[1744297947374,0.247063,80951.0,80947.0,0.247072]
[1744297947780,0.01251911,80954.0,80948.0,0.247069]
[1744297947958,0.00016711,80954.0,80953.0,0.247056]
[1744297948134,0.00016711,80954.0,80948.0,0.012353]
[1744297948135,0.00016711,80954.0,80951.0,0.012353]
[1744297948323,0.24722111,80954.0,80951.0,0.25857979]
[1744297948523,0.00016711,80954.0,80952.0,0.247058]
[1744297948807,0.01251911,80954.0,80947.0,0.012353]
[1744297949097,0.01251911,80954.0,80949.0,0.247068]
[1744297949309,0.24722311,80954.0,80950.0,0.247064]
[1744297949443,0.259408,80955.0,80948.0,0.259423]
[1744297949646,0.247059,80953.0,80948.0,0.259423]
[1744297950108,0.247061,80952.0,80948.0,0.259424]
[1744297950281,0.247058,80953.0,80949.0,0.247068]
[1744297950667,0.247053,80955.0,80951.0,0.247062]
[1744297950868,0.247057,80953.0,80950.0,0.27015862]
[1744297951063,0.247051,80955.0,80951.0,0.24706]
[1744297951293,0.247051,80955.0,80950.0,0.02309362]
[1744297951501,0.259402,80955.0,80950.0,0.02309362]
[1744297951677,0.259402,80955.0,80943.0,0.247084]
[1744297951678,0.247074,80948.0,80943.0,0.247084]
[1744297951879,0.247063,80951.0,80947.0,0.247072]
[1744297952497,0.247066,80950.0,80948.0,0.02309452]
[1744297952859,0.247063,80951.0,80948.0,0.27016552]
[1744297953129,0.247063,80951.0,80949.0,0.02309452]
[1744297953364,0.247063,80951.0,80947.0,0.247072]
[1744297953365,0.247066,80950.0,80947.0,0.247072]
[1744297953722,0.247066,80950.0,80946.0,0.012353]
[1744297953723,0.24707,80949.0,80948.0,0.02309532]
[1744297954084,0.259423,80949.0,80948.0,0.02309532]
[1744297954340,0.24707,80949.0,80948.0,0.02309532]
[1744297954521,0.24707,80949.0,80944.0,0.00012711]
[1744297954522,0.247081,80945.0,80944.0,0.00012711]
[1744297955219,0.247079,80946.0,80944.0,0.00012711]
[1744297955449,0.247081,80945.0,80944.0,0.00012711]
[1744297956091,0.247079,80946.0,80944.0,0.00012711]
[1744297956407,0.247081,80945.0,80944.0,0.00012711]
[1744297958648,0.247079,80946.0,80944.0,0.00012711]
[1744297958851,0.247081,80945.0,80944.0,0.00012711]
[1744297960863,0.247079,80946.0,80944.0,0.00012711]
[1744297961309,0.247081,80945.0,80944.0,0.00012711]
[1744297965237,0.247079,80946.0,80944.0,0.00012711]
[1744297965449,0.247081,80945.0,80944.0,0.00012711]
[1744297966408,0.247041,80959.0,80953.0,0.012352]
[1744297966617,0.247042,80958.0,80955.0,0.247048]
[1744297966760,0.247066,80950.0,80945.0,0.012354]
[1744297966936,0.247063,80951.0,80947.0,0.247072]
[1744297967143,0.247076,80947.0,80944.0,0.00012711]
[1744297967563,0.247081,80945.0,80944.0,0.00012711]
[1744297967761,0.247078,80946.0,80944.0,0.00012711]
[1744297967971,0.247078,80946.0,80944.0,0.24721011]
[1744297969525,0.247075,80947.0,80944.0,0.24721011]
[1744297969745,0.247078,80946.0,80944.0,0.24721011]
[1744297970038,0.247075,80947.0,80944.0,0.24721011]
[1744297970368,0.247078,80946.0,80944.0,0.24721011]
[1744297970661,0.247075,80947.0,80944.0,0.24721011]
[1744297971718,0.247072,80948.0,80944.0,0.24721111]
[1744297972391,0.247076,80947.0,80944.0,0.24721111]
[1744297972596,0.247072,80948.0,80945.0,0.24708]
[1744297972937,0.012353,80951.0,80944.0,0.00012711]
[1744297973137,0.247077,80947.0,80944.0,0.00012711]
[1744297973335,4e-05,80948.0,80944.0,0.00012711]
[1744297973336,0.24708,80946.0,80944.0,0.00012711]
[1744297973745,4e-05,80948.0,80945.0,0.24708]
[1744297974078,0.247113,80948.0,80945.0,0.24708]
[1744297974510,4e-05,80948.0,80946.0,0.247077]
[1744297974715,0.247112,80948.0,80946.0,0.247077]
[1744297974919,0.247112,80948.0,80945.0,0.24708]
[1744297975235,4e-05,80948.0,80946.0,0.247077]
[1744297975415,4e-05,80948.0,80945.0,0.24708]
[1744297975614,0.247112,80948.0,80944.0,0.24721111]
[1744297975819,4e-05,80948.0,80945.0,0.24708]
[1744297975983,8e-05,80948.0,80946.0,0.247075]
[1744297976191,8e-05,80948.0,80947.0,0.259428]
[1744297978377,8e-05,80948.0,80947.0,0.308128]
[1744297978630,8e-05,80948.0,80944.0,0.01248111]
[1744297978631,0.259435,80945.0,80944.0,0.00012711]
[1744297978862,0.259435,80945.0,80944.0,1.1e-07]
[1744297978863,0.45561982,80945.0,80944.0,1.1e-07]
[1744297979105,1.20741982,80945.0,80944.0,1.1e-07]
[1744297979343,1.14632967,80945.0,80944.0,1.1e-07]
[1744297979806,1.13452967,80945.0,80944.0,1.1e-07]
[1744297980035,0.79452967,80945.0,80944.0,1.1e-07]
[1744297980591,0.77998882,80945.0,80944.0,1.1e-07]
[1744297980822,0.97662882,80945.0,80944.0,1.1e-07]
[1744297981487,0.456075,80945.0,80944.0,1.1e-07]
[1744297982867,0.71160226,80945.0,80944.0,1.1e-07]
[1744297983474,0.59109867,80945.0,80944.0,1.1e-07]
[1744297984869,0.93109867,80945.0,80944.0,1.1e-07]
[1744297985593,1.13445867,80945.0,80944.0,1.1e-07]
[1744297985864,1.33109867,80945.0,80944.0,1.1e-07]
[1744297987048,1.47649691,80945.0,80944.0,1.1e-07]
[1744297987966,0.259511,80921.0,80920.0,0.0001684]
[1744297988207,0.39460567,80921.0,80920.0,0.0001684]
[1744297988462,0.247152,80922.0,80920.0,0.0001684]
[1744297988697,0.24715,80923.0,80920.0,0.0001684]
[1744297988934,0.443824,80925.0,80921.0,0.247154]
[1744297989161,0.247151,80922.0,80920.0,0.0001684]
[1744297989377,0.247145,80924.0,80920.0,0.0001684]
[1744297989662,0.24715,80923.0,80920.0,0.0001684]
[1744297990048,0.24715,80923.0,80920.0,0.2473254]
[1744297990259,0.443823,80925.0,80922.0,0.247151]
[1744297990431,0.247145,80924.0,80921.0,0.259511]
[1744297990633,0.247148,80923.0,80920.0,0.0001684]
[1744297990852,0.247148,80923.0,80920.0,0.2473254]
[1744297991521,0.247148,80923.0,80920.0,0.0001684]
[1744297992782,0.247152,80922.0,80920.0,0.0001684]
[1744297993668,0.247148,80923.0,80920.0,0.0001684]
[1744297993930,0.247146,80924.0,80920.0,0.2473224]
[1744297994327,0.24715,80923.0,80920.0,0.0001684]
[1744297994837,0.247146,80924.0,80920.0,0.0001684]
[1744297995015,0.19064,80927.0,80923.0,0.247147]
[1744297995206,0.437777,80927.0,80921.0,0.247151]
[1744297995539,0.247148,80923.0,80920.0,0.0001684]
[1744297996047,0.247145,80924.0,80920.0,0.2473234]
[1744297996541,0.61409085,80909.0,80908.0,9e-07]
[1744297996787,0.92528467,80909.0,80908.0,9e-07]
[1744297996933,1.32528467,80909.0,80908.0,9e-07]
[1744297997707,1.33772247,80909.0,80908.0,9e-07]
[1744297998113,1.34600032,80909.0,80908.0,9e-07]
[1744297998356,0.99356252,80909.0,80908.0,9e-07]
[1744297998554,0.97074382,80909.0,80908.0,9e-07]
[1744297999120,0.57074382,80909.0,80908.0,9e-07]
[1744298001354,0.58528467,80909.0,80908.0,9e-07]
[1744298001523,0.70571726,80909.0,80908.0,9e-07]
[1744298001719,0.98528467,80909.0,80908.0,9e-07]
[1744298001927,1.34807809,80909.0,80908.0,9e-07]
[1744298003483,0.012361,80899.0,80898.0,4e-07]
[1744298003659,0.73467667,80899.0,80898.0,4e-07]